[Event "*** Titled Tuesday 3|2 Blitz"]
[Site "Chess.com"]
[Date "2017.05.02"]
[Round "8"]
[White "biostatistician"]
[Black "ItalianMachine"]
[Result "1-0"]
[WhiteElo "2420"]
[BlackElo "2209"]
[TimeControl "180+2"]
[EndTime "14:43:19 PDT"]
[Termination "biostatistician won by resignation"]

1. d4 {[%clk 0:03:02]} 1... g6 {[%clk 0:02:57.8]} 2. Nf3 {[%clk 0:03:03.3]} 2...
Bg7 {[%clk 0:02:58.9]} 3. c4 {[%clk 0:03:04.9]} 3... d6 {[%clk 0:02:59.6]} 4.
Nc3 {[%clk 0:03:05.3]} 4... c6 {[%clk 0:02:59.7]} 5. e4 {[%clk 0:03:04.6]} 5...
Bg4 {[%clk 0:02:56.4]} 6. Be2 {[%clk 0:03:05.7]} 6... Bxf3 {[%clk 0:02:55.5]} 7.
Bxf3 {[%clk 0:03:06.2]} 7... Nd7 {[%clk 0:02:53.3]} 8. Be3 {[%clk 0:03:02.9]}
8... e5 {[%clk 0:02:49.2]} 9. O-O {[%clk 0:02:51.1]} 9... Ngf6 {[%clk
0:02:48.5]} 10. Qd2 {[%clk 0:02:46.2]} 10... O-O {[%clk 0:02:46.3]} 11. Rac1
{[%clk 0:02:38.8]} 11... Qe7 {[%clk 0:02:45]} 12. d5 {[%clk 0:02:37.3]} 12...
Ne8 {[%clk 0:02:24.5]} 13. dxc6 {[%clk 0:02:30.3]} 13... bxc6 {[%clk 0:02:24.7]}
14. Rfd1 {[%clk 0:02:31.7]} 14... f5 {[%clk 0:02:20.4]} 15. exf5 {[%clk
0:02:31.5]} 15... gxf5 {[%clk 0:02:21]} 16. Bxc6 {[%clk 0:02:31.7]} 16... f4
{[%clk 0:02:16.8]} 17. Bxa8 {[%clk 0:02:30.6]} 17... fxe3 {[%clk 0:02:13.8]} 18.
Qxe3 {[%clk 0:02:32.2]} 18... Qh4 {[%clk 0:01:57.9]} 19. Qg3 {[%clk 0:02:17]}
19... Qh6 {[%clk 0:01:41.4]} 20. Bc6 {[%clk 0:02:13.1]} 20... Nef6 {[%clk
0:01:38.9]} 21. Bxd7 {[%clk 0:02:12]} 21... Nxd7 {[%clk 0:01:39]} 22. Ne4 {[%clk
0:02:11.9]} 22... Rf4 {[%clk 0:01:23.7]} 23. Nxd6 {[%clk 0:02:06.3]} 23... Rd4
{[%clk 0:01:21.9]} 24. Nf5 {[%clk 0:01:55.3]} 1-0

[Event "*** Titled Tuesday 3|2 Blitz"]
[Site "Chess.com"]
[Date "2017.05.02"]
[Round "8"]
[White "sorito"]
[Black "BigMak2500"]
[Result "1-0"]
[WhiteElo "2381"]
[BlackElo "2380"]
[TimeControl "180+2"]
[EndTime "14:43:34 PDT"]
[Termination "sorito won by checkmate"]

1. d4 {[%clk 0:03:02]} 1... d5 {[%clk 0:03:00.7]} 2. e3 {[%clk 0:02:59.8]} 2...
Nf6 {[%clk 0:03:01.1]} 3. c4 {[%clk 0:03:00.7]} 3... c6 {[%clk 0:03:02.1]} 4.
Nc3 {[%clk 0:03:00.7]} 4... e6 {[%clk 0:03:01.5]} 5. Nf3 {[%clk 0:03:01.2]} 5...
Nbd7 {[%clk 0:03:01.9]} 6. Qc2 {[%clk 0:03:02.7]} 6... Bd6 {[%clk 0:03:02.1]} 7.
b3 {[%clk 0:03:04.2]} 7... O-O {[%clk 0:03:01.4]} 8. Bb2 {[%clk 0:03:05.6]} 8...
e5 {[%clk 0:02:54.6]} 9. dxe5 {[%clk 0:03:06.3]} 9... Nxe5 {[%clk 0:02:55.5]}
10. cxd5 {[%clk 0:03:05.7]} 10... cxd5 {[%clk 0:02:52.3]} 11. O-O-O {[%clk
0:03:01]} 11... Nxf3 {[%clk 0:02:39.2]} 12. gxf3 {[%clk 0:03:01.7]} 12... Be6
{[%clk 0:02:39.6]} 13. Rg1 {[%clk 0:03:02.4]} 13... Rc8 {[%clk 0:02:25]} 14. Kb1
{[%clk 0:03:03.7]} 14... b5 {[%clk 0:02:14.5]} 15. Qd2 {[%clk 0:03:04.2]} 15...
b4 {[%clk 0:02:15.5]} 16. Nb5 {[%clk 0:02:59.9]} 16... Bxh2 {[%clk 0:02:08.5]}
17. Rg2 {[%clk 0:02:59.3]} 17... Bb8 {[%clk 0:02:07]} 18. Qd4 {[%clk 0:02:56.2]}
18... Kh8 {[%clk 0:01:47.1]} 19. Bd3 {[%clk 0:02:51]} 19... a6 {[%clk
0:01:33.6]} 20. Rxg7 {[%clk 0:02:45.1]} 20... axb5 {[%clk 0:00:32.5]} 21. Rxh7+
{[%clk 0:02:40.4]} 21... Kg8 {[%clk 0:00:32]} 22. Rg1+ {[%clk 0:02:42]} 22...
Bg3 {[%clk 0:00:31.1]} 23. Rxg3+ {[%clk 0:02:42.8]} 23... Bg4 {[%clk 0:00:32.6]}
24. Rxg4+ {[%clk 0:02:43.7]} 24... Nxg4 {[%clk 0:00:32.4]} 25. Qg7# {[%clk
0:02:43.8]} 1-0

[Event "*** Titled Tuesday 3|2 Blitz"]
[Site "Chess.com"]
[Date "2017.05.02"]
[Round "8"]
[White "Robin-Side"]
[Black "TricksOnly"]
[Result "0-1"]
[WhiteElo "2273"]
[BlackElo "2399"]
[TimeControl "180+2"]
[EndTime "14:44:06 PDT"]
[Termination "TricksOnly won by resignation"]

1. e4 {[%clk 0:03:02]} 1... d5 {[%clk 0:03:00.7]} 2. exd5 {[%clk 0:03:02.7]}
2... Nf6 {[%clk 0:03:01.9]} 3. Bb5+ {[%clk 0:03:02.6]} 3... Bd7 {[%clk
0:03:02.2]} 4. Bc4 {[%clk 0:03:04.1]} 4... b5 {[%clk 0:03:03.1]} 5. Bb3 {[%clk
0:03:04.5]} 5... Bg4 {[%clk 0:03:04]} 6. f3 {[%clk 0:03:04.7]} 6... Bf5 {[%clk
0:03:03.6]} 7. g4 {[%clk 0:03:05]} 7... Bc8 {[%clk 0:03:03]} 8. Qe2 {[%clk
0:02:58.9]} 8... a6 {[%clk 0:03:02.6]} 9. a4 {[%clk 0:02:51.7]} 9... b4 {[%clk
0:03:00.3]} 10. a5 {[%clk 0:02:30.1]} 10... Nxd5 {[%clk 0:02:55.8]} 11. Qc4
{[%clk 0:02:23.1]} 11... e6 {[%clk 0:02:49.2]} 12. Ne2 {[%clk 0:02:24.1]} 12...
Qh4+ {[%clk 0:02:35.9]} 13. Kd1 {[%clk 0:01:37.9]} 13... Be7 {[%clk 0:02:27.5]}
14. Nf4 {[%clk 0:01:23.3]} 14... Nxf4 {[%clk 0:02:21.9]} 15. Qxf4 {[%clk
0:01:23.7]} 15... O-O {[%clk 0:02:13.6]} 16. c3 {[%clk 0:01:19.2]} 16... Bb7
{[%clk 0:02:09.1]} 17. Bc2 {[%clk 0:00:39.4]} 17... Bg5 {[%clk 0:01:59.4]} 18.
Qe4 {[%clk 0:00:15]} 18... Bxe4 {[%clk 0:01:58.9]} 19. Bxe4 {[%clk 0:00:16.1]}
19... Ra7 {[%clk 0:01:55.9]} 0-1

[Event "*** Titled Tuesday 3|2 Blitz"]
[Site "Chess.com"]
[Date "2017.05.02"]
[Round "8"]
[White "ChristopherYoo"]
[Black "Wolverine_master"]
[Result "1-0"]
[WhiteElo "2236"]
[BlackElo "1942"]
[TimeControl "180+2"]
[EndTime "14:44:45 PDT"]
[Termination "ChristopherYoo won by checkmate"]

1. e4 {[%clk 0:01:25.9]} 1... d5 {[%clk 0:02:57.6]} 2. exd5 {[%clk 0:01:26.6]}
2... Qxd5 {[%clk 0:02:57.7]} 3. Nc3 {[%clk 0:01:27.5]} 3... Qd6 {[%clk
0:02:58.1]} 4. Nf3 {[%clk 0:01:28.4]} 4... Nf6 {[%clk 0:02:59.6]} 5. d4 {[%clk
0:01:29.1]} 5... a6 {[%clk 0:03:01.2]} 6. Be3 {[%clk 0:01:27.8]} 6... Nc6 {[%clk
0:03:02.6]} 7. Qd2 {[%clk 0:01:28.5]} 7... Bg4 {[%clk 0:03:04]} 8. O-O-O {[%clk
0:01:24.5]} 8... O-O-O {[%clk 0:03:01.1]} 9. Be2 {[%clk 0:01:17.8]} 9... e5
{[%clk 0:02:58.9]} 10. dxe5 {[%clk 0:01:14.9]} 10... Nxe5 {[%clk 0:02:57.2]} 11.
Nxe5 {[%clk 0:01:11.6]} 11... Qxd2+ {[%clk 0:02:39.1]} 12. Rxd2 {[%clk
0:01:11.3]} 12... Rxd2 {[%clk 0:02:40.2]} 13. Kxd2 {[%clk 0:01:08.7]} 13... Bxe2
{[%clk 0:02:40.5]} 14. Kxe2 {[%clk 0:01:07.8]} 14... Bb4 {[%clk 0:02:40.8]} 15.
Nxf7 {[%clk 0:01:04.4]} 15... Rf8 {[%clk 0:02:41.7]} 16. Ne5 {[%clk 0:01:04.6]}
16... Re8 {[%clk 0:02:38.4]} 17. Nd3 {[%clk 0:01:01]} 17... Bxc3 {[%clk
0:02:26.9]} 18. bxc3 {[%clk 0:01:01.5]} 18... Nd5 {[%clk 0:02:28.6]} 19. Kd2
{[%clk 0:01:00.9]} 19... Nxe3 {[%clk 0:02:24.8]} 20. fxe3 {[%clk 0:01:01.2]}
20... Rf8 {[%clk 0:02:26.5]} 21. Ke2 {[%clk 0:01:00.2]} 21... b6 {[%clk
0:02:26.2]} 22. h4 {[%clk 0:00:52.7]} 22... Rf6 {[%clk 0:02:26.3]} 23. Nf4
{[%clk 0:00:51.5]} 23... c6 {[%clk 0:02:25.2]} 24. g4 {[%clk 0:00:51.6]} 24...
h6 {[%clk 0:02:25.5]} 25. g5 {[%clk 0:00:50.4]} 25... Rf5 {[%clk 0:02:25.9]} 26.
gxh6 {[%clk 0:00:46.7]} 26... gxh6 {[%clk 0:02:27.8]} 27. Rg1 {[%clk 0:00:47.1]}
27... Ra5 {[%clk 0:02:28.3]} 28. Rg6 {[%clk 0:00:45.6]} 28... Rxa2 {[%clk
0:02:29.3]} 29. Kd2 {[%clk 0:00:44.8]} 29... Ra1 {[%clk 0:02:28.7]} 30. Rxc6+
{[%clk 0:00:44.5]} 30... Kb7 {[%clk 0:02:29.6]} 31. Rxh6 {[%clk 0:00:45.2]}
31... a5 {[%clk 0:02:31.5]} 32. e4 {[%clk 0:00:44.5]} 32... a4 {[%clk
0:02:32.9]} 33. Nd5 {[%clk 0:00:44.2]} 33... a3 {[%clk 0:02:32.3]} 34. Rxb6+
{[%clk 0:00:44.4]} 34... Ka7 {[%clk 0:02:32.6]} 35. Rb4 {[%clk 0:00:44.3]} 35...
Ka6 {[%clk 0:02:30]} 36. c4 {[%clk 0:00:38.4]} 36... Ka5 {[%clk 0:02:30.6]} 37.
Rb5+ {[%clk 0:00:38.7]} 37... Ka6 {[%clk 0:02:29.8]} 38. Nb4+ {[%clk 0:00:39.6]}
38... Ka7 {[%clk 0:02:28.6]} 39. c5 {[%clk 0:00:39.7]} 39... Rh1 {[%clk
0:02:23.8]} 40. Nc6+ {[%clk 0:00:38.2]} 40... Ka6 {[%clk 0:02:24.2]} 41. Rb6#
{[%clk 0:00:39.1]} 1-0

[Event "*** Titled Tuesday 3|2 Blitz"]
[Site "Chess.com"]
[Date "2017.05.02"]
[Round "8"]
[White "Lawliet64"]
[Black "aa175"]
[Result "0-1"]
[WhiteElo "1993"]
[BlackElo "1815"]
[TimeControl "180+2"]
[EndTime "14:44:56 PDT"]
[Termination "aa175 won by resignation"]

1. e4 {[%clk 0:03:02]} 1... e5 {[%clk 0:02:58.7]} 2. Nf3 {[%clk 0:03:00.9]} 2...
Nc6 {[%clk 0:02:59.3]} 3. Bb5 {[%clk 0:02:54.3]} 3... Nf6 {[%clk 0:02:59.8]} 4.
d3 {[%clk 0:02:54.7]} 4... Bc5 {[%clk 0:02:40.8]} 5. O-O {[%clk 0:02:52.5]} 5...
Nd4 {[%clk 0:02:32.4]} 6. Nxd4 {[%clk 0:02:50]} 6... Bxd4 {[%clk 0:02:34.3]} 7.
c3 {[%clk 0:02:51]} 7... Bb6 {[%clk 0:02:25.8]} 8. h3 {[%clk 0:02:50.6]} 8...
O-O {[%clk 0:02:21.3]} 9. Nd2 {[%clk 0:02:47.5]} 9... d5 {[%clk 0:02:14.5]} 10.
exd5 {[%clk 0:02:46.5]} 10... Nxd5 {[%clk 0:02:06.2]} 11. Nf3 {[%clk 0:02:44.6]}
11... c6 {[%clk 0:01:48.5]} 12. Ba4 {[%clk 0:02:41.6]} 12... Bc7 {[%clk
0:01:38.1]} 13. Bg5 {[%clk 0:02:36.5]} 13... f6 {[%clk 0:01:36.9]} 14. Bh4
{[%clk 0:02:31.9]} 14... Nf4 {[%clk 0:01:24.6]} 15. Bc2 {[%clk 0:02:18.2]} 15...
Bf5 {[%clk 0:01:14.6]} 16. d4 {[%clk 0:02:04.6]} 16... Qd7 {[%clk 0:00:58.9]}
17. dxe5 {[%clk 0:02:01.4]} 17... fxe5 {[%clk 0:00:42.5]} 18. Qxd7 {[%clk
0:01:56.6]} 18... Bxd7 {[%clk 0:00:37.1]} 19. Rfe1 {[%clk 0:01:57.8]} 19...
Nxh3+ {[%clk 0:00:36.2]} 20. gxh3 {[%clk 0:01:56]} 20... Rxf3 {[%clk 0:00:36.7]}
21. Be4 {[%clk 0:01:53.4]} 21... Rxh3 {[%clk 0:00:32.6]} 22. Bg3 {[%clk
0:01:51.3]} 22... Rf8 {[%clk 0:00:22.5]} 23. Rad1 {[%clk 0:01:52.5]} 23... Bb6
{[%clk 0:00:16.8]} 24. Kg2 {[%clk 0:01:50.3]} 24... Be6 {[%clk 0:00:17.1]} 25.
Rd6 {[%clk 0:01:50]} 25... Bc8 {[%clk 0:00:14.5]} 26. Bxe5 {[%clk 0:01:40.7]}
26... Rxf2+ {[%clk 0:00:14.2]} 0-1

[Event "*** Titled Tuesday 3|2 Blitz"]
[Site "Chess.com"]
[Date "2017.05.02"]
[Round "8"]
[White "ehrenfeld"]
[Black "DryCounty"]
[Result "0-1"]
[WhiteElo "2384"]
[BlackElo "2458"]
[TimeControl "180+2"]
[EndTime "14:45:43 PDT"]
[Termination "DryCounty won by resignation"]

1. e4 {[%clk 0:03:02]} 1... c5 {[%clk 0:03:00.4]} 2. Nf3 {[%clk 0:03:02.4]} 2...
d6 {[%clk 0:03:01.5]} 3. Bc4 {[%clk 0:03:02.9]} 3... Nf6 {[%clk 0:03:01.7]} 4.
d3 {[%clk 0:03:03.5]} 4... g6 {[%clk 0:03:01.5]} 5. O-O {[%clk 0:03:01.4]} 5...
Bg7 {[%clk 0:03:02.5]} 6. Bb3 {[%clk 0:03:02.4]} 6... O-O {[%clk 0:03:03.3]} 7.
c3 {[%clk 0:03:03.4]} 7... Nc6 {[%clk 0:03:02.4]} 8. Re1 {[%clk 0:03:04.1]} 8...
b5 {[%clk 0:03:02.4]} 9. d4 {[%clk 0:02:57.7]} 9... Bb7 {[%clk 0:02:55.3]} 10.
d5 {[%clk 0:02:54]} 10... Na5 {[%clk 0:02:56.2]} 11. Bc2 {[%clk 0:02:54.4]}
11... e6 {[%clk 0:02:55.8]} 12. dxe6 {[%clk 0:02:51.4]} 12... fxe6 {[%clk
0:02:56.9]} 13. Nbd2 {[%clk 0:02:50]} 13... Qd7 {[%clk 0:02:54.9]} 14. e5 {[%clk
0:02:47]} 14... Ng4 {[%clk 0:02:45.1]} 15. exd6 {[%clk 0:02:42.1]} 15... Qxd6
{[%clk 0:02:46.1]} 16. Ne4 {[%clk 0:02:41.5]} 16... Qxd1 {[%clk 0:02:46.7]} 17.
Rxd1 {[%clk 0:02:41.9]} 17... c4 {[%clk 0:02:26.6]} 18. h3 {[%clk 0:02:34.6]}
18... Nf6 {[%clk 0:02:24.8]} 19. Nxf6+ {[%clk 0:02:34.5]} 19... Bxf6 {[%clk
0:02:23.4]} 20. Ng5 {[%clk 0:02:33.3]} 20... Bxg5 {[%clk 0:02:22.4]} 21. Bxg5
{[%clk 0:02:33.2]} 21... Bd5 {[%clk 0:02:22.1]} 22. a4 {[%clk 0:02:30.5]} 22...
a6 {[%clk 0:02:21.2]} 23. Bh6 {[%clk 0:02:25.2]} 23... Rfe8 {[%clk 0:02:19]} 24.
Re1 {[%clk 0:02:22.7]} 24... Nc6 {[%clk 0:02:17]} 25. axb5 {[%clk 0:02:15.7]}
25... axb5 {[%clk 0:02:17.5]} 26. h4 {[%clk 0:02:15.7]} 26... b4 {[%clk
0:02:15.9]} 27. Rad1 {[%clk 0:01:56.9]} 27... b3 {[%clk 0:02:13.7]} 28. Bb1
{[%clk 0:01:57.4]} 28... Kf7 {[%clk 0:02:08.4]} 29. f3 {[%clk 0:01:53.6]} 29...
Ne7 {[%clk 0:02:07.8]} 30. g4 {[%clk 0:01:53.7]} 30... Nc6 {[%clk 0:02:04.8]}
31. Kf2 {[%clk 0:01:52.5]} 31... Rad8 {[%clk 0:02:03.1]} 32. Kg3 {[%clk
0:01:52]} 32... Kg8 {[%clk 0:01:54.1]} 33. Rh1 {[%clk 0:01:48.4]} 33... Rd7
{[%clk 0:01:53.2]} 34. h5 {[%clk 0:01:48.3]} 34... Rf7 {[%clk 0:01:45.1]} 35.
Rxd5 {[%clk 0:01:35.7]} 35... exd5 {[%clk 0:01:44]} 36. hxg6 {[%clk 0:01:36.9]}
36... hxg6 {[%clk 0:01:42.3]} 37. Bxg6 {[%clk 0:01:37.8]} 37... Re2 {[%clk
0:01:39.2]} 38. Bxf7+ {[%clk 0:01:35.3]} 38... Kxf7 {[%clk 0:01:39.6]} 39. Rh2
{[%clk 0:01:35.7]} 39... Rxh2 {[%clk 0:01:35.5]} 40. Kxh2 {[%clk 0:01:36.3]}
40... d4 {[%clk 0:01:35.7]} 41. cxd4 {[%clk 0:01:36.6]} 41... c3 {[%clk
0:01:32]} 42. Bc1 {[%clk 0:01:35.7]} 42... c2 {[%clk 0:01:32.9]} 43. Kg3 {[%clk
0:01:19.5]} 43... Nb4 {[%clk 0:01:33]} 44. Bd2 {[%clk 0:01:11.7]} 44... Nd3
{[%clk 0:01:31.9]} 45. d5 {[%clk 0:01:08.9]} 45... Nxb2 {[%clk 0:01:32.5]} 46.
g5 {[%clk 0:01:08.1]} 46... Nc4 {[%clk 0:01:30.7]} 47. Bc1 {[%clk 0:01:06.2]}
47... b2 {[%clk 0:01:30.8]} 0-1

[Event "*** Titled Tuesday 3|2 Blitz"]
[Site "Chess.com"]
[Date "2017.05.02"]
[Round "8"]
[White "Konavets"]
[Black "Spartakus1975"]
[Result "1-0"]
[WhiteElo "2687"]
[BlackElo "2595"]
[TimeControl "180+2"]
[EndTime "14:45:53 PDT"]
[Termination "Konavets won by resignation"]

1. e4 {[%clk 0:03:02]} 1... e6 {[%clk 0:03:00.2]} 2. d4 {[%clk 0:03:02.6]} 2...
d5 {[%clk 0:03:01.8]} 3. Nc3 {[%clk 0:03:04.5]} 3... Nf6 {[%clk 0:03:02.8]} 4.
Bg5 {[%clk 0:03:04.2]} 4... dxe4 {[%clk 0:03:02.7]} 5. Nxe4 {[%clk 0:03:06.1]}
5... Be7 {[%clk 0:03:04.4]} 6. Bxf6 {[%clk 0:03:06.5]} 6... gxf6 {[%clk
0:03:05.5]} 7. Nf3 {[%clk 0:03:08]} 7... a6 {[%clk 0:03:05.2]} 8. Qd2 {[%clk
0:03:08.8]} 8... b6 {[%clk 0:02:58.4]} 9. O-O-O {[%clk 0:03:09.5]} 9... Bb7
{[%clk 0:02:59.1]} 10. Bd3 {[%clk 0:03:10.8]} 10... c6 {[%clk 0:02:35.8]} 11.
Kb1 {[%clk 0:03:09.1]} 11... Nd7 {[%clk 0:02:36.4]} 12. Qf4 {[%clk 0:03:05.3]}
12... Qb8 {[%clk 0:02:34.8]} 13. Qh6 {[%clk 0:03:05.4]} 13... Qc7 {[%clk
0:02:35.5]} 14. Qg7 {[%clk 0:03:04.9]} 14... Rf8 {[%clk 0:02:32.8]} 15. Qxh7
{[%clk 0:03:05.9]} 15... O-O-O {[%clk 0:02:32.7]} 16. Rhe1 {[%clk 0:02:41.9]}
16... Qf4 {[%clk 0:02:16.6]} 17. Re3 {[%clk 0:02:34.7]} 17... f5 {[%clk
0:02:07.7]} 18. g3 {[%clk 0:02:30.4]} 18... Qc7 {[%clk 0:01:58.2]} 19. Nc3
{[%clk 0:02:24.6]} 19... Nf6 {[%clk 0:01:53.3]} 20. Qh3 {[%clk 0:02:24.1]} 20...
c5 {[%clk 0:01:34]} 21. Bxf5 {[%clk 0:01:56.2]} 21... exf5 {[%clk 0:01:31.4]}
22. Qxf5+ {[%clk 0:01:58.1]} 22... Kb8 {[%clk 0:01:13]} 23. d5 {[%clk
0:01:52.9]} 23... Ne8 {[%clk 0:00:59.8]} 24. Ne5 {[%clk 0:01:42.4]} 24... Nd6
{[%clk 0:00:55.2]} 25. Qf4 {[%clk 0:01:43.7]} 25... b5 {[%clk 0:00:47.6]} 26.
Nc6+ {[%clk 0:01:41.6]} 26... Bxc6 {[%clk 0:00:47.5]} 27. dxc6 {[%clk
0:01:43.5]} 27... Nc8 {[%clk 0:00:26.9]} 28. Rd7 {[%clk 0:01:42]} 28... Qxf4
{[%clk 0:00:26.4]} 29. gxf4 {[%clk 0:01:41.6]} 29... Bf6 {[%clk 0:00:25.1]} 30.
c7+ {[%clk 0:01:42.7]} 30... Ka8 {[%clk 0:00:23]} 31. cxd8=Q {[%clk 0:01:43.9]}
31... Rxd8 {[%clk 0:00:23.6]} 32. Rxd8 {[%clk 0:01:44.3]} 32... Bxd8 {[%clk
0:00:25.2]} 33. Re8 {[%clk 0:01:46.2]} 1-0

[Event "*** Titled Tuesday 3|2 Blitz"]
[Site "Chess.com"]
[Date "2017.05.02"]
[Round "8"]
[White "Enzy63"]
[Black "olgerts_indricans"]
[Result "0-1"]
[WhiteElo "2039"]
[BlackElo "2261"]
[TimeControl "180+2"]
[EndTime "14:46:00 PDT"]
[Termination "olgerts_indricans won by resignation"]

1. d4 {[%clk 0:03:02]} 1... Nf6 {[%clk 0:03:00.5]} 2. Nf3 {[%clk 0:03:03]} 2...
g6 {[%clk 0:03:00.8]} 3. c4 {[%clk 0:03:03.3]} 3... Bg7 {[%clk 0:03:01.6]} 4. g3
{[%clk 0:03:04.9]} 4... O-O {[%clk 0:03:02.4]} 5. Bg2 {[%clk 0:03:06.3]} 5... d6
{[%clk 0:03:03.4]} 6. Nc3 {[%clk 0:03:07.1]} 6... Nc6 {[%clk 0:03:04.3]} 7. O-O
{[%clk 0:03:07.7]} 7... a6 {[%clk 0:03:05.2]} 8. Bf4 {[%clk 0:03:07.9]} 8... Bf5
{[%clk 0:02:58]} 9. Rc1 {[%clk 0:02:40.1]} 9... Ne4 {[%clk 0:02:45.9]} 10. Nxe4
{[%clk 0:02:40.9]} 10... Bxe4 {[%clk 0:02:46.7]} 11. d5 {[%clk 0:02:41.4]} 11...
Bxf3 {[%clk 0:02:41.2]} 12. exf3 {[%clk 0:02:17]} 12... Nd4 {[%clk 0:02:31.5]}
13. Qd2 {[%clk 0:02:07.4]} 13... c5 {[%clk 0:02:25.8]} 14. dxc6 {[%clk
0:01:56.2]} 14... bxc6 {[%clk 0:02:24.2]} 15. Rfe1 {[%clk 0:01:46.3]} 15... c5
{[%clk 0:02:11.5]} 16. Bg5 {[%clk 0:01:27.4]} 16... Ra7 {[%clk 0:01:58.8]} 17.
h4 {[%clk 0:01:17.6]} 17... Rb7 {[%clk 0:01:59.1]} 18. b3 {[%clk 0:01:15.7]}
18... a5 {[%clk 0:01:47.3]} 19. h5 {[%clk 0:00:55.6]} 19... a4 {[%clk
0:01:44.9]} 20. hxg6 {[%clk 0:00:55.8]} 20... hxg6 {[%clk 0:01:44.6]} 21. bxa4
{[%clk 0:00:53.2]} 21... Rb2 {[%clk 0:01:42.4]} 22. Qd3 {[%clk 0:00:52.2]} 22...
Ne6 {[%clk 0:01:37.3]} 23. Rxe6 {[%clk 0:00:44]} 23... fxe6 {[%clk 0:01:39.2]}
24. Bh3 {[%clk 0:00:44.5]} 24... Rf5 {[%clk 0:01:36.2]} 25. Bxf5 {[%clk
0:00:42.4]} 25... gxf5 {[%clk 0:01:31.2]} 26. Rb1 {[%clk 0:00:34.8]} 26... Rxa2
{[%clk 0:01:26.6]} 27. Rb7 {[%clk 0:00:32.8]} 27... Bd4 {[%clk 0:01:09]} 28. Be3
{[%clk 0:00:21.6]} 28... Bf6 {[%clk 0:01:05.7]} 29. Qb3 {[%clk 0:00:21.1]} 29...
Rb2 {[%clk 0:01:00.6]} 30. Rb8 {[%clk 0:00:18.3]} 30... Qxb8 {[%clk 0:01:01]}
0-1

[Event "*** Titled Tuesday 3|2 Blitz"]
[Site "Chess.com"]
[Date "2017.05.02"]
[Round "8"]
[White "GM_Huschenbeth"]
[Black "Noukii"]
[Result "1-0"]
[WhiteElo "2391"]
[BlackElo "2614"]
[TimeControl "180+2"]
[EndTime "14:46:18 PDT"]
[Termination "GM_Huschenbeth won by resignation"]

1. e4 {[%clk 0:03:02]} 1... Nf6 {[%clk 0:02:58.9]} 2. e5 {[%clk 0:03:02.8]} 2...
Nd5 {[%clk 0:02:59.3]} 3. c4 {[%clk 0:03:04.4]} 3... Nb6 {[%clk 0:03:00.5]} 4.
d4 {[%clk 0:03:06.3]} 4... d5 {[%clk 0:03:01.8]} 5. exd6 {[%clk 0:03:08.2]} 5...
cxd6 {[%clk 0:03:03.1]} 6. Nc3 {[%clk 0:03:07.9]} 6... g6 {[%clk 0:03:04.5]} 7.
Be3 {[%clk 0:03:08.7]} 7... Bg7 {[%clk 0:03:05.9]} 8. Nf3 {[%clk 0:03:09.8]}
8... O-O {[%clk 0:03:07]} 9. h3 {[%clk 0:03:10.2]} 9... Nc6 {[%clk 0:03:08]} 10.
Be2 {[%clk 0:03:08.1]} 10... Bf5 {[%clk 0:03:09.5]} 11. O-O {[%clk 0:03:09]}
11... d5 {[%clk 0:03:11]} 12. c5 {[%clk 0:03:05.3]} 12... Nc4 {[%clk 0:03:12.1]}
13. Bxc4 {[%clk 0:03:05.3]} 13... dxc4 {[%clk 0:03:14]} 14. d5 {[%clk 0:03:06]}
14... Nb4 {[%clk 0:03:15.1]} 15. Bd4 {[%clk 0:02:34.3]} 15... Bh6 {[%clk
0:03:02.7]} 16. Qa4 {[%clk 0:02:24.4]} 16... Nxd5 {[%clk 0:02:48.2]} 17. Qxc4
{[%clk 0:02:24.9]} 17... Be6 {[%clk 0:02:49.2]} 18. Nxd5 {[%clk 0:02:01.7]}
18... Qxd5 {[%clk 0:02:46.9]} 19. Qc3 {[%clk 0:01:57.5]} 19... Rfd8 {[%clk
0:02:44.4]} 20. Rfe1 {[%clk 0:01:49.9]} 20... Rac8 {[%clk 0:02:39.9]} 21. b4
{[%clk 0:01:44.4]} 21... Bf8 {[%clk 0:02:28]} 22. a4 {[%clk 0:01:37.8]} 22...
Qc4 {[%clk 0:02:27]} 23. Qxc4 {[%clk 0:01:13.6]} 23... Bxc4 {[%clk 0:02:27.6]}
24. Be3 {[%clk 0:00:37.6]} 24... f6 {[%clk 0:02:24.4]} 25. Rac1 {[%clk 0:00:38]}
25... Bb3 {[%clk 0:02:23.7]} 26. Nd4 {[%clk 0:00:37]} 26... Bf7 {[%clk 0:02:16]}
27. f4 {[%clk 0:00:26.8]} 27... Bd5 {[%clk 0:02:02.8]} 28. Red1 {[%clk
0:00:23.2]} 28... Kf7 {[%clk 0:02:02.9]} 29. Nb5 {[%clk 0:00:19.4]} 29... a6
{[%clk 0:01:58.5]} 30. Na7 {[%clk 0:00:17.6]} 30... Rb8 {[%clk 0:01:37.3]} 31.
c6 {[%clk 0:00:19.1]} 31... bxc6 {[%clk 0:01:36.2]} 32. Nxc6 {[%clk 0:00:20.2]}
32... Bxc6 {[%clk 0:01:37.8]} 33. Rxd8 {[%clk 0:00:21.5]} 33... Rxd8 {[%clk
0:01:39.7]} 34. Rxc6 {[%clk 0:00:22.7]} 34... Rd3 {[%clk 0:01:34.5]} 35. Kf2
{[%clk 0:00:22.7]} 35... Rb3 {[%clk 0:01:34.7]} 36. Bc5 {[%clk 0:00:23]} 36...
e5 {[%clk 0:01:31.1]} 37. Rc7+ {[%clk 0:00:23.3]} 37... Ke6 {[%clk 0:01:28]} 38.
Bxf8 {[%clk 0:00:24.5]} 38... exf4 {[%clk 0:01:29.9]} 39. Rxh7 {[%clk
0:00:24.2]} 39... Rb2+ {[%clk 0:01:31.8]} 40. Kf3 {[%clk 0:00:25]} 40... g5
{[%clk 0:01:33.7]} 41. Ra7 {[%clk 0:00:24.2]} 41... Kf5 {[%clk 0:01:34.5]} 42.
Rxa6 {[%clk 0:00:24.3]} 42... Rb3+ {[%clk 0:01:36.4]} 43. Kf2 {[%clk 0:00:24.9]}
43... Rb2+ {[%clk 0:01:38.3]} 44. Kg1 {[%clk 0:00:25.2]} 44... Rb1+ {[%clk
0:01:40]} 45. Kh2 {[%clk 0:00:26.2]} 45... Rb2 {[%clk 0:01:41.9]} 46. Be7 {[%clk
0:00:24.7]} 1-0